{"text_format":"1","workbook":"xlsx","n_sheets":17,"sheets":["журнал прихода","Поставщик","Грузоперевозчик","Номенклатура","Какие машины привозили цемент","Наименование материала","Откуда материал","Место приемки-Завод","журнал заявок","журнал план-факт поставки","Заявка МТ-1 для печати","Номенклатура-ГОСТ","Организация","Подразделение","Завод","даты","Лист1"],"not_rendered":{"charts":0,"images":2,"macros":1,"external_links":0,"defined_names":10,"comments":0,"pivot_tables":0},"unopened":[],"bounds":{"document_bytes":16777216,"sheet_cells":100000,"rows_first":2000,"rows_last":500,"rows_between":2000,"halvings":0,"cell_chars":16384,"cell_head_chars":4096},"cells_cut":0,"cells_raw":0,"read":"whole","date_system":"1900"}

{"sheet":"журнал прихода","index":0,"n_rows":4,"n_cols":27,"rows_kept":4,"cut":false,"hidden":false,"merged":[]}
[]
["Дата","Поставщик","Номенклатура","Вид материала","Завод","В таре/Навалом","Первый вес, т.","Второй вес, т.","Вес материала на весовой, т.","Вес по накладной поставщика т.","Нормы естественной убыли при транспортировании, %","Отклонения при взвешивании, т. Недостача (-)/Излишки (+)","Вес принятый к БУ по документам поставщика","База для расчета отклонения, т","Погрешность материала в % к фактическому весу","Отклонения, % (в пределах нормы)","Отклонения, % (сверх нормы)","Отклонения, т (в пределах нормы)","Отклонения, т (сверх нормы)","Номер в КЭ Бетон","Номер автомобиля ","Номер накладной","Примечание = Время прибытия","Грузоперевозчик","Вид цемента","Какие машины привозили цемент","Место приемки по накладной"]
["2016-01-12","ООО \"ВСК\"","Портландцемент ЦЕМI42,5Н","Цемент","РБУ-2","В таре","53,650","15,550",{"$f":"IF(G3=\"\",\"\",G3-H3)","v":38.099999999999994},"38,100",{"$f":"IFERROR(IF(Таблица2[[#This Row],[В таре/Навалом]]=Поставщик!#REF!,VLOOKUP(Таблица2[[#This Row],[Вид материала]],Поставщик!#REF!,2,0)/100,IF(Таблица2[[#This Row],[В таре/Навалом]]=Поставщик!#REF!,VLOOKUP(Таблица2[[#This Row],[Вид материала]],Поставщик!#REF!,3,0)/100,\"\")),\"\")","v":""},{"$f":"IFERROR(I3-J3,\"\")","v":-7.1054273576010019E-15},null,{"$f":"IF(M3=I3,0,(IF(L3<0,L3,0)))","v":-7.1054273576010019E-15},{"$f":"IF(M3>I3,M3-I3,0)","v":0},{"$f":"IF(N3>J3,N3-J3,0)","v":0},{"$f":"IF(O3>K3,O3-K3,0)","v":0},0,0,"001","519","172","14:27:00","Аксиома Групп","Серебряковский",null,"Красная Горка"]
["2016-01-12","ООО \"Аксиома -Групп\"","Портландцемент ЦЕМI42,5Н","Цемент","РБУ-2","В таре","53,350","15,770",{"$f":"IF(G4=\"\",\"\",G4-H4)","v":37.58},"37,580",{"$f":"IFERROR(IF(Таблица2[[#This Row],[В таре/Навалом]]=Поставщик!#REF!,VLOOKUP(Таблица2[[#This Row],[Вид материала]],Поставщик!#REF!,2,0)/100,IF(Таблица2[[#This Row],[В таре/Навалом]]=Поставщик!#REF!,VLOOKUP(Таблица2[[#This Row],[Вид материала]],Поставщик!#REF!,3,0)/100,\"\")),\"\")","v":""},0,null,0,{"$f":"IF(M4>I4,M4-I4,0)","v":0},0,0,0,0,"002","913","193","15:29:00","Аксиома Групп","Серебряковский",null,"Красная Горка"]

{"sheet":"Поставщик","index":1,"n_rows":28,"n_cols":2,"rows_kept":28,"cut":false,"hidden":false,"merged":[]}
[null,"Поставщик"]
[null,"\"Генерал Констракшн\""]
[null,"\"Полипласт Новомосковск\""]
[null,"АО \"ЕВРОЦЕМЕНТ груп\""]
[null,"ЗАО ''ГСП-Тейд''"]
[null,"ООО \"Аксиома -Групп\""]
[null,"ООО \"Алмаз Сервис\""]
[null,"ООО \"АльфаСтройСервис\""]
[null,"ООО \"БЭСТО-ГРУПП\""]
[null,"ООО \"ВСК\""]
[null,"ООО \"ГЕО-НДТ\""]
[null,"ООО \"Гефест\""]
[null,"ООО \"Клинкер\""]
[null,"ООО \"Легран\""]
[null,"ООО \"М-УПТК\""]
[null,"ООО \"Неруд Профи\""]
[null,"ООО \"НТ Логистик\""]
[null,"ООО \"РДК\""]
[null,"ООО \"РДК\""]
[null,"ООО \"Сигма Плюс\""]
[null,"ООО \"ТехноГранд\""]
[null,"ООО \"Траст Контракт\""]
[null,"ООО \"ХайдельбергЦементРус\""]
[null,"ООО ''Альфа Строй''"]
[null,"ООО ''Карьер ''"]
[null,"ООО ''Неруд Центр''"]
[null,"ООО ''ТрансСтрой''"]
[null,"я"]

{"sheet":"Грузоперевозчик","index":2,"n_rows":27,"n_cols":2,"rows_kept":27,"cut":false,"hidden":false,"merged":[]}
[null,"Грузоперевозчик"]
[null,"\"Недра Логистик\""]
[null,"\"Полипласт Новомосковск\""]
[null,"C-Визит-Групп"]
[null,"OOO \"ТехноГранд\""]
[null,"Авангард"]
[null,"Аксиома Групп"]
[null,"Алмаз Сервис"]
[null,"БЭСТО-ГРУПП"]
[null,"Генерал Контракшн"]
[null,"Генератор"]
[null,"ГЕО-НТД"]
[null,"Гефест"]
[null,"Легран"]
[null,"Неруд Профи"]
[null,"НерудЦентр"]
[null,"НТ Логистик"]
[null,"ООО\" ТКВ\""]
[null,"ООО\"ВСК\""]
[null,"ООО\"РДК\""]
[null,"ООО\"Ю-НИК\""]
[null,"ОрионТранс"]
[null,"СервисТрансСтрой"]
[null,"Сигма Плюс"]
[null,"СтройАвангард"]
[null,"СтройПроект"]
[null,"Траст Контракт"]

{"sheet":"Номенклатура","index":3,"n_rows":35,"n_cols":3,"rows_kept":35,"cut":false,"hidden":false,"merged":[]}
[]
[null,"№ п/п","Номенклатура"]
[null,1,"Добавка ITP СК-20,2"]
[null,{"$f":"IF(C4=\"\",\"\",B3+1)","v":2},"Добавка IТР СК-20,2"]
[null,{"$f":"IF(C5=\"\",\"\",B4+1)","v":3},"Добавка для бетона Тенакс 302"]
[null,4,"Добавка комплексная МС Рапид115.1-1100"]
[null,5,"Добавка Мурапор Комби 756R-1000"]
[null,6,"Добавка Сигма 302"]
[null,7,"Добавка Сигма 602"]
[null,8,"Добавка суперпласт с прот.мор. Эф.ITZ AF-20"]
[null,9,"Добавка Юникон Арктит НМ 610"]
[null,10,"Добавка Юникон Тенакс РМ302"]
[null,11,"Песок крупный 1 класс"]
[null,12,"Песок растворный"]
[null,13,"Пластификатор Центрамент П40-1100"]
[null,14,"Полипласт Норд"]
[null,15,"Полипласт П-1"]
[null,16,"Портландцемент ЦЕМ II / А-И 42,5Н"]
[null,17,"Портландцемент ЦЕМI42,5Н"]
[null,18,"противоморозная доб.МС Рапид025-1200"]
[null,19,"Суперпластификатор Мурапласт ФК19-1100"]
[null,20,"Щебень гравийный фр. 5-20"]
[null,21,"Щебень гравийный фр.3-10"]
[null,22,"Щебень гранитный фр. 3-10"]
[null,23,"Щебень гранитный фр. 5-20"]
[null,24,"Щебень известняковый фр. 5-20"]
[null,""]
[null,""]
[null,""]
[null,""]
[null,""]
[null,""]
[null,""]
[null,""]
[null,""]

{"sheet":"Какие машины привозили цемент","index":4,"n_rows":9,"n_cols":3,"rows_kept":9,"cut":false,"hidden":false,"merged":[]}
[]
[null,"№ п/п","Какие машины привозили цемент"]
[null,1,"Аксиома групп"]
[null,{"$f":"IF(C4=\"\",\"\",B3+1)","v":2},"БЭСТА"]
[null,{"$f":"IF(C5=\"\",\"\",B4+1)","v":3},"Евроцемент"]
[null,""]
[null,""]
[null,""]
[null,{"$f":"IF(C9=\"\",\"\",#REF!+1)","v":""}]

{"sheet":"Наименование материала","index":5,"n_rows":35,"n_cols":5,"rows_kept":35,"cut":false,"hidden":false,"merged":[]}
[]
[null,"№ п/п","Вид материала","В таре","Навалом"]
[null,1,"Цемент",0.4,0.4]
[null,{"$f":"IF(C4=\"\",\"\",B3+1)","v":2},"Щебень известняковый",1.3,1.3]
[null,{"$f":"IF(C5=\"\",\"\",B4+1)","v":3},"Щебень гравийный",1.3,1.3]
[null,4,"Щебень гранитный",1.3,1.3]
[null,5,"Песок строительный",2,2]
[null,6,"Песок растворный",2,2]
[null,7,"Добавка",0,0]
[null,""]
[null,""]
[null,""]
[null,""]
[null,""]
[null,""]
[null,""]
[null,""]
[null,""]
[null,""]
[null,""]
[null,""]
[null,""]
[null,""]
[null,""]
[null,""]
[null,""]
[null,""]
[null,""]
[null,""]
[null,""]
[null,""]
[null,""]
[null,""]
[null,""]
[null,""]

{"sheet":"Откуда материал","index":6,"n_rows":35,"n_cols":3,"rows_kept":35,"cut":false,"hidden":false,"merged":[]}
[]
[null,"№ п/п","Откуда материал"]
[null,1,"Липецк"]
[null,{"$f":"IF(C4=\"\",\"\",B3+1)","v":2},"Мальцовский"]
[null,{"$f":"IF(C5=\"\",\"\",B4+1)","v":3},"Михайловский"]
[null,4,"Серебрянский"]
[null,""]
[null,""]
[null,""]
[null,""]
[null,""]
[null,""]
[null,""]
[null,""]
[null,""]
[null,""]
[null,""]
[null,""]
[null,""]
[null,""]
[null,""]
[null,""]
[null,""]
[null,""]
[null,""]
[null,""]
[null,""]
[null,""]
[null,""]
[null,""]
[null,""]
[null,""]
[null,""]
[null,""]
[null,""]

{"sheet":"Место приемки-Завод","index":7,"n_rows":9,"n_cols":4,"rows_kept":9,"cut":false,"hidden":false,"merged":[]}
[]
[null,"№ п/п","Место приемки по накладной","Завод"]
[null,1,"Дрожжино","РБУ-1"]
[null,{"$f":"IF(C4=\"\",\"\",B3+1)","v":2},"Красная Горка","РБУ-2"]
[null,{"$f":"IF(C5=\"\",\"\",B4+1)","v":3},"Нахабино"]
[null,4,"Сергиев Пасад"]
[null,""]
[null,""]
[null,{"$f":"IF(C9=\"\",\"\",#REF!+1)","v":""}]

{"sheet":"журнал заявок","index":8,"n_rows":1,"n_cols":9,"rows_kept":1,"cut":false,"hidden":false,"merged":[]}
[null,"№ п/п","Организация","Подразделение","Наименование","Марка ГОСТ/ТУ согласно проекту","Ед. изм.","Общее кол-во","Требуемый график поставки"]

{"sheet":"журнал план-факт поставки","index":9,"n_rows":28,"n_cols":20,"rows_kept":28,"cut":false,"hidden":false,"merged":[[0,3,0,17]]}
[null,null,{"$f":"WEEKNUM(B2,1)","v":1},"Планируемые поступления  материалов \"Дрожжино\" "]
[null,"2016-01-01",{"$f":"IF(WEEKDAY(B2)=\"\",\"\",VLOOKUP(WEEKDAY(B2),Таблица15[],2))","v":"Пятница"},null,null,null,null,null,null,"на ",{"$f":"WEEKNUM(B2,1)","v":1},"неделю"]
[]
[null,"Материалы","Поставщик","Ед. изм","00.01.1900","12.01.2016 приход Факт","Столбец1","Столбец2","Столбец3","Столбец4","Столбец5","Столбец6","Столбец7","Столбец8","Столбец9","Столбец10","Столбец11","12.01.2016 \"приход Факт\"13","Приход за период План по поставщикам","Приход за период Факт по поставщикам"]
[null,"Щебень","ООО ''Неруд Центр''","тн",{"$f":"SUMPRODUCT('журнал прихода'!$I$3:$I$20*('журнал прихода'!$B$3:$B$20=C5)*('журнал прихода'!$A$3:$A$20=$E$4)*('журнал прихода'!$D$3:$D$20=B5))","v":0},{"$f":"SUMPRODUCT('журнал прихода'!$I$3:$I$20*('журнал прихода'!$B$3:$B$20=C5)*('журнал прихода'!$A$3:$A$20=$E$4)*('журнал прихода'!$D$3:$D$20=B5))","v":0},0,0,200,150,200,0,0,0,0,0,0,0,{"$f":"SUMIF(#REF!,\"Приход План\",E5:R5)","v":{"$error":"#REF!"}},{"$f":"SUMIF(#REF!,\"Приход Факт\",E5:R5)","v":{"$error":"#REF!"}}]
[null,null,null,"тн",{"$f":"SUMPRODUCT('журнал прихода'!$I$3:$I$20*('журнал прихода'!$B$3:$B$20=C6)*('журнал прихода'!$A$3:$A$20=$E$4)*('журнал прихода'!$D$3:$D$20=B6))","v":0},{"$f":"SUMPRODUCT('журнал прихода'!$I$3:$I$20*('журнал прихода'!$B$3:$B$20=C6)*('журнал прихода'!$A$3:$A$20=$E$4)*('журнал прихода'!$D$3:$D$20=B6))","v":0},0,0,0,0,0,0,0,0,0,0,0,0,{"$f":"SUMIF(#REF!,\"Приход План\",E6:R6)","v":{"$error":"#REF!"}},{"$f":"SUMIF(#REF!,\"Приход Факт\",E6:R6)","v":{"$error":"#REF!"}}]
[null,null,null,"тн",{"$f":"SUMPRODUCT('журнал прихода'!$I$3:$I$20*('журнал прихода'!$B$3:$B$20=C7)*('журнал прихода'!$A$3:$A$20=$E$4)*('журнал прихода'!$D$3:$D$20=B7))","v":0},{"$f":"SUMPRODUCT('журнал прихода'!$I$3:$I$20*('журнал прихода'!$B$3:$B$20=C7)*('журнал прихода'!$A$3:$A$20=$E$4)*('журнал прихода'!$D$3:$D$20=B7))","v":0},null,null,null,null,null,null,null,null,null,null,null,null,{"$f":"SUMIF(#REF!,\"Приход План\",E7:R7)","v":{"$error":"#REF!"}},{"$f":"SUMIF(#REF!,\"Приход Факт\",E7:R7)","v":{"$error":"#REF!"}}]
[null,"Песок бетонный","НерудЦентр","тн",{"$f":"SUMPRODUCT('журнал прихода'!$I$3:$I$20*('журнал прихода'!$B$3:$B$20=C8)*('журнал прихода'!$A$3:$A$20=$E$4)*('журнал прихода'!$D$3:$D$20=B8))","v":0},{"$f":"SUMPRODUCT('журнал прихода'!$I$3:$I$20*('журнал прихода'!$B$3:$B$20=C8)*('журнал прихода'!$A$3:$A$20=$E$4)*('журнал прихода'!$D$3:$D$20=B8))","v":0},null,null,null,null,null,null,null,null,null,null,null,null,{"$f":"SUMIF(#REF!,\"Приход План\",E8:R8)","v":{"$error":"#REF!"}},{"$f":"SUMIF(#REF!,\"Приход Факт\",E8:R8)","v":{"$error":"#REF!"}}]
[null,null,null,"тн",{"$f":"SUMPRODUCT('журнал прихода'!$I$3:$I$20*('журнал прихода'!$B$3:$B$20=C9)*('журнал прихода'!$A$3:$A$20=$E$4)*('журнал прихода'!$D$3:$D$20=B9))","v":0},{"$f":"SUMPRODUCT('журнал прихода'!$I$3:$I$20*('журнал прихода'!$B$3:$B$20=C9)*('журнал прихода'!$A$3:$A$20=$E$4)*('журнал прихода'!$D$3:$D$20=B9))","v":0},null,null,null,null,null,null,null,null,null,null,null,null,{"$f":"SUMIF(#REF!,\"Приход План\",E9:R9)","v":{"$error":"#REF!"}},{"$f":"SUMIF(#REF!,\"Приход Факт\",E9:R9)","v":{"$error":"#REF!"}}]
[null,null,null,"тн",{"$f":"SUMPRODUCT('журнал прихода'!$I$3:$I$20*('журнал прихода'!$B$3:$B$20=C10)*('журнал прихода'!$A$3:$A$20=$E$4)*('журнал прихода'!$D$3:$D$20=B10))","v":0},{"$f":"SUMPRODUCT('журнал прихода'!$I$3:$I$20*('журнал прихода'!$B$3:$B$20=C10)*('журнал прихода'!$A$3:$A$20=$E$4)*('журнал прихода'!$D$3:$D$20=B10))","v":0},null,null,null,null,null,null,null,null,null,null,null,null,{"$f":"SUMIF(#REF!,\"Приход План\",E10:R10)","v":{"$error":"#REF!"}},{"$f":"SUMIF(#REF!,\"Приход Факт\",E10:R10)","v":{"$error":"#REF!"}}]
[null,"Песок растворный","НерудЦентр","тн",{"$f":"SUMPRODUCT('журнал прихода'!$I$3:$I$20*('журнал прихода'!$B$3:$B$20=C11)*('журнал прихода'!$A$3:$A$20=$E$4)*('журнал прихода'!$D$3:$D$20=B11))","v":0},{"$f":"SUMPRODUCT('журнал прихода'!$I$3:$I$20*('журнал прихода'!$B$3:$B$20=C11)*('журнал прихода'!$A$3:$A$20=$E$4)*('журнал прихода'!$D$3:$D$20=B11))","v":0},null,null,null,null,null,null,null,null,null,null,null,null,{"$f":"SUMIF(#REF!,\"Приход План\",E11:R11)","v":{"$error":"#REF!"}},{"$f":"SUMIF(#REF!,\"Приход Факт\",E11:R11)","v":{"$error":"#REF!"}}]
[null,null,null,"тн",{"$f":"SUMPRODUCT('журнал прихода'!$I$3:$I$20*('журнал прихода'!$B$3:$B$20=C12)*('журнал прихода'!$A$3:$A$20=$E$4)*('журнал прихода'!$D$3:$D$20=B12))","v":0},{"$f":"SUMPRODUCT('журнал прихода'!$I$3:$I$20*('журнал прихода'!$B$3:$B$20=C12)*('журнал прихода'!$A$3:$A$20=$E$4)*('журнал прихода'!$D$3:$D$20=B12))","v":0},null,null,null,null,null,null,null,null,null,null,null,null,{"$f":"SUMIF(#REF!,\"Приход План\",E12:R12)","v":{"$error":"#REF!"}},{"$f":"SUMIF(#REF!,\"Приход Факт\",E12:R12)","v":{"$error":"#REF!"}}]
[null,null,null,"тн",{"$f":"SUMPRODUCT('журнал прихода'!$I$3:$I$20*('журнал прихода'!$B$3:$B$20=C13)*('журнал прихода'!$A$3:$A$20=$E$4)*('журнал прихода'!$D$3:$D$20=B13))","v":0},{"$f":"SUMPRODUCT('журнал прихода'!$I$3:$I$20*('журнал прихода'!$B$3:$B$20=C13)*('журнал прихода'!$A$3:$A$20=$E$4)*('журнал прихода'!$D$3:$D$20=B13))","v":0},null,null,null,null,null,null,null,null,null,null,null,null,{"$f":"SUMIF(#REF!,\"Приход План\",E13:R13)","v":{"$error":"#REF!"}},{"$f":"SUMIF(#REF!,\"Приход Факт\",E13:R13)","v":{"$error":"#REF!"}}]
[null,"Щебень Гравийный","НерудЦентр","тн",{"$f":"SUMPRODUCT('журнал прихода'!$I$3:$I$20*('журнал прихода'!$B$3:$B$20=C14)*('журнал прихода'!$A$3:$A$20=$E$4)*('журнал прихода'!$D$3:$D$20=B14))","v":0},{"$f":"SUMPRODUCT('журнал прихода'!$I$3:$I$20*('журнал прихода'!$B$3:$B$20=C14)*('журнал прихода'!$A$3:$A$20=$E$4)*('журнал прихода'!$D$3:$D$20=B14))","v":0},null,null,null,null,null,null,null,null,null,null,null,null,{"$f":"SUMIF(#REF!,\"Приход План\",E14:R14)","v":{"$error":"#REF!"}},{"$f":"SUMIF(#REF!,\"Приход Факт\",E14:R14)","v":{"$error":"#REF!"}}]
[null,null,null,"тн",{"$f":"SUMPRODUCT('журнал прихода'!$I$3:$I$20*('журнал прихода'!$B$3:$B$20=C15)*('журнал прихода'!$A$3:$A$20=$E$4)*('журнал прихода'!$D$3:$D$20=B15))","v":0},{"$f":"SUMPRODUCT('журнал прихода'!$I$3:$I$20*('журнал прихода'!$B$3:$B$20=C15)*('журнал прихода'!$A$3:$A$20=$E$4)*('журнал прихода'!$D$3:$D$20=B15))","v":0},null,null,null,null,null,null,null,null,null,null,null,null,{"$f":"SUMIF(#REF!,\"Приход План\",E15:R15)","v":{"$error":"#REF!"}},{"$f":"SUMIF(#REF!,\"Приход Факт\",E15:R15)","v":{"$error":"#REF!"}}]
[null,null,null,"тн",{"$f":"SUMPRODUCT('журнал прихода'!$I$3:$I$20*('журнал прихода'!$B$3:$B$20=C16)*('журнал прихода'!$A$3:$A$20=$E$4)*('журнал прихода'!$D$3:$D$20=B16))","v":0},{"$f":"SUMPRODUCT('журнал прихода'!$I$3:$I$20*('журнал прихода'!$B$3:$B$20=C16)*('журнал прихода'!$A$3:$A$20=$E$4)*('журнал прихода'!$D$3:$D$20=B16))","v":0},null,null,null,null,null,null,null,null,null,null,null,null,{"$f":"SUMIF(#REF!,\"Приход План\",E16:R16)","v":{"$error":"#REF!"}},{"$f":"SUMIF(#REF!,\"Приход Факт\",E16:R16)","v":{"$error":"#REF!"}}]
[null,"Щебень Известняковый","ГЕО-НДТ","тн",{"$f":"SUMPRODUCT('журнал прихода'!$I$3:$I$20*('журнал прихода'!$B$3:$B$20=C17)*('журнал прихода'!$A$3:$A$20=$E$4)*('журнал прихода'!$D$3:$D$20=B17))","v":0},{"$f":"SUMPRODUCT('журнал прихода'!$I$3:$I$20*('журнал прихода'!$B$3:$B$20=C17)*('журнал прихода'!$A$3:$A$20=$E$4)*('журнал прихода'!$D$3:$D$20=B17))","v":0},null,null,null,null,null,null,null,null,null,null,null,null,{"$f":"SUMIF(#REF!,\"Приход План\",E17:R17)","v":{"$error":"#REF!"}},{"$f":"SUMIF(#REF!,\"Приход Факт\",E17:R17)","v":{"$error":"#REF!"}}]
[null,null,null,"тн",{"$f":"SUMPRODUCT('журнал прихода'!$I$3:$I$20*('журнал прихода'!$B$3:$B$20=C18)*('журнал прихода'!$A$3:$A$20=$E$4)*('журнал прихода'!$D$3:$D$20=B18))","v":0},{"$f":"SUMPRODUCT('журнал прихода'!$I$3:$I$20*('журнал прихода'!$B$3:$B$20=C18)*('журнал прихода'!$A$3:$A$20=$E$4)*('журнал прихода'!$D$3:$D$20=B18))","v":0},null,null,null,null,null,null,null,null,null,null,null,null,{"$f":"SUMIF(#REF!,\"Приход План\",E18:R18)","v":{"$error":"#REF!"}},{"$f":"SUMIF(#REF!,\"Приход Факт\",E18:R18)","v":{"$error":"#REF!"}}]
[null,null,null,"тн",{"$f":"SUMPRODUCT('журнал прихода'!$I$3:$I$20*('журнал прихода'!$B$3:$B$20=C19)*('журнал прихода'!$A$3:$A$20=$E$4)*('журнал прихода'!$D$3:$D$20=B19))","v":0},{"$f":"SUMPRODUCT('журнал прихода'!$I$3:$I$20*('журнал прихода'!$B$3:$B$20=C19)*('журнал прихода'!$A$3:$A$20=$E$4)*('журнал прихода'!$D$3:$D$20=B19))","v":0},null,null,null,null,null,null,null,null,null,null,null,null,{"$f":"SUMIF(#REF!,\"Приход План\",E19:R19)","v":{"$error":"#REF!"}},{"$f":"SUMIF(#REF!,\"Приход Факт\",E19:R19)","v":{"$error":"#REF!"}}]
[null,"Добавка","РДК","тн",{"$f":"SUMPRODUCT('журнал прихода'!$I$3:$I$20*('журнал прихода'!$B$3:$B$20=C20)*('журнал прихода'!$A$3:$A$20=$E$4)*('журнал прихода'!$D$3:$D$20=B20))","v":0},{"$f":"SUMPRODUCT('журнал прихода'!$I$3:$I$20*('журнал прихода'!$B$3:$B$20=C20)*('журнал прихода'!$A$3:$A$20=$E$4)*('журнал прихода'!$D$3:$D$20=B20))","v":0},null,null,null,null,null,null,null,null,null,null,null,null,{"$f":"SUMIF(#REF!,\"Приход План\",E20:R20)","v":{"$error":"#REF!"}},{"$f":"SUMIF(#REF!,\"Приход Факт\",E20:R20)","v":{"$error":"#REF!"}}]
[null,null,null,"тн",{"$f":"SUMPRODUCT('журнал прихода'!$I$3:$I$20*('журнал прихода'!$B$3:$B$20=C21)*('журнал прихода'!$A$3:$A$20=$E$4)*('журнал прихода'!$D$3:$D$20=B21))","v":0},{"$f":"SUMPRODUCT('журнал прихода'!$I$3:$I$20*('журнал прихода'!$B$3:$B$20=C21)*('журнал прихода'!$A$3:$A$20=$E$4)*('журнал прихода'!$D$3:$D$20=B21))","v":0},null,null,null,null,null,null,null,null,null,null,null,null,{"$f":"SUMIF(#REF!,\"Приход План\",E21:R21)","v":{"$error":"#REF!"}},{"$f":"SUMIF(#REF!,\"Приход Факт\",E21:R21)","v":{"$error":"#REF!"}}]
[null,null,null,"тн",{"$f":"SUMPRODUCT('журнал прихода'!$I$3:$I$20*('журнал прихода'!$B$3:$B$20=C22)*('журнал прихода'!$A$3:$A$20=$E$4)*('журнал прихода'!$D$3:$D$20=B22))","v":0},{"$f":"SUMPRODUCT('журнал прихода'!$I$3:$I$20*('журнал прихода'!$B$3:$B$20=C22)*('журнал прихода'!$A$3:$A$20=$E$4)*('журнал прихода'!$D$3:$D$20=B22))","v":0},null,null,null,null,null,null,null,null,null,null,null,null,{"$f":"SUMIF(#REF!,\"Приход План\",E22:R22)","v":{"$error":"#REF!"}},{"$f":"SUMIF(#REF!,\"Приход Факт\",E22:R22)","v":{"$error":"#REF!"}}]
[]
[]
[]
[]
[]
[null,null,null,null,{"$f":"CONCATENATE(\"приход План    \",(B2))","v":"приход План    42370"}]

{"sheet":"Заявка МТ-1 для печати","index":10,"n_rows":21,"n_cols":16,"rows_kept":21,"cut":false,"hidden":false,"merged":[[16,8,16,9],[17,8,17,9],[19,8,19,9],[20,8,20,9]]}
[null,null,null,null,"ПОТРЕБНОСТЬ В МАТЕРИАЛЬНЫХ РЕСУРСАХ НА НЕДЕЛЮ ",null,null,null,null,null,null,null,null,null,null,"Форма Мт-1"]
[null,null,null,null," с 05.07.2016 (вторник)",null,"по 11.07.2016 (пятницу)"]
[]
["№","Организация","РБУ","Подрязделение","Наименование","Марка ГОСТ/ТУ\nсогласно проекту","Ед. изм.","Общее\nк-во  ","День недели","День недели2","День недели3","День недели4","День недели5","День недели6","День недели7","Примечание"]
[null,null,null,null,null,null,null,null,"вт","ср","чт","пт","сб","вс","пн"]
[1,"М-Бетон","РБУ-1 Дрожжино","Лаборатория","Цемент ЦЕМ I 42,5 H","ГОСТ 310.1-76г.","тонн",200]
[2,"М-Бетон","РБУ-1 Дрожжино","Лаборатория","Щебень гравийный фр. 5÷20мм.","ГОСТ 8267-93; 26633-2012г.","тонн",1000]
[3,"М-Бетон","РБУ-1 Дрожжино","Лаборатория","Песок для раствора","ГОСТ 8736-2014г.","тонн",500]
[4,"М-Бетон","РБУ-1 Дрожжино","Лаборатория","Щебень известняковый фр. 5÷20мм.","ГОСТ 8267-93; 26633-2012г.","тонн",1000]
[5,"М-Бетон","РБУ-1 Дрожжино","Лаборатория","Песок для бетона","ГОСТ 8736-2014г.","тонн",2000]
[6,"М-Бетон","РБУ-1 Дрожжино","Лаборатория","Техногранд СК 20.2","Добавка для бетона","тонн",10]
[7,"М-Бетон","РБУ-2 Люберецкий","Лаборатория","Цемент ЦЕМ I 42,5 H","ГОСТ 310.1-76г.","тонн",150]
[8,"М-Бетон","РБУ-2 Люберецкий","Лаборатория","Песок для бетона","ГОСТ 8736-2014г.","тонн",2500]
[9,"М-Бетон","РБУ-2 Люберецкий","Лаборатория","Песок для раствора","ГОСТ 8736-2014г.","тонн",1000]
[10,"М-Бетон","РБУ-2 Люберецкий","Лаборатория","Щебень известняковый фр. 5÷20мм.","ГОСТ 8267-93; 26633-2012г.","тонн",1500]
[]
[null,"ИСПОЛНИТЕЛЬ:",null,null,null,"Нач. Лаборатории",null,null,null,null,"\"__\" ______________2016г."]
[null,null,null,null,null,"Должность","ЮЛ","Подпись","ФИО"]
[]
[null,"СОГЛАСОВАНО:",null,null,null,"Генеральный директор",null,null,null,null,"\"__\" ______________2016г."]
[null,null,null,null,null,"Должность","ЮЛ","Подпись","ФИО"]

{"sheet":"Номенклатура-ГОСТ","index":11,"n_rows":35,"n_cols":4,"rows_kept":35,"cut":false,"hidden":false,"merged":[]}
[]
[null,"№ п/п","Номенклатура","Марка по ГОСТ/ТУ согласно проекту"]
[null,1,"Добавка ITP СК-20,2","ГОСТ Р 56592-2015"]
[null,{"$f":"IF(C4=\"\",\"\",B3+1)","v":2},"Добавка для бетона Тенакс 302","ГОСТ Р 56592-2015"]
[null,{"$f":"IF(C5=\"\",\"\",B4+1)","v":3},"Добавка комплексная МС Рапид115.1-1100","ГОСТ Р 56592-2015"]
[null,{"$f":"IF(C6=\"\",\"\",B5+1)","v":4},"Добавка Мурапор Комби 756R-1000","ГОСТ Р 56592-2015"]
[null,5,"Добавка Сигма 302","ГОСТ Р 56592-2015"]
[null,6,"Добавка Сигма 602","ГОСТ Р 56592-2015"]
[null,7,"Добавка суперпласт с прот.мор. Эф.ITZ AF-20","ГОСТ Р 56592-2015"]
[null,8,"Добавка Юникон Арктит НМ 610","ГОСТ Р 56592-2015"]
[null,9,"Добавка Юникон Тенакс РМ302","ГОСТ Р 56592-2015"]
[null,10,"Песок крупный 1 класс","ГОСТ 32495-2013; ГОСТ 8736-2014"]
[null,11,"Песок растворный","ГОСТ 32495-2013; ГОСТ 8736-2014"]
[null,12,"Пластификатор Центрамент П40-1100","ГОСТ Р 56592-2015"]
[null,13,"Полипласт Норд","ГОСТ Р 56592-2015"]
[null,14,"Полипласт П-1","ГОСТ Р 56592-2015"]
[null,15,"Портландцемент ЦЕМ II / А-И 42,5Н","ГОСТ 30515-2013 "]
[null,16,"Портландцемент ЦЕМI42,5Н","ГОСТ 30515-2014"]
[null,17,"Противоморозная доб.МС Рапид025-1200","ГОСТ Р 56592-2015"]
[null,18,"Суперпластификатор Мурапласт ФК19-1100","ГОСТ Р 56592-2015"]
[null,19,"Щебень гравийный фр. 5-20","ГОСТ 8267-93; ГОСТ 26633-2012"]
[null,20,"Щебень гравийный фр.3-10","ГОСТ 8267-93; ГОСТ 26633-2012"]
[null,21,"Щебень гранитный фр. 3-10","ГОСТ 8267-93; ГОСТ 26633-2012"]
[null,22,"Щебень гранитный фр. 5-20","ГОСТ 8267-93; ГОСТ 26633-2012"]
[null,23,"Щебень известняковый фр. 5-20","ГОСТ 8267-93; ГОСТ 26633-2012"]
[null,""]
[null,""]
[null,""]
[null,""]
[null,""]
[null,""]
[null,""]
[null,""]
[null,""]
[null,""]

{"sheet":"Организация","index":12,"n_rows":4,"n_cols":3,"rows_kept":4,"cut":false,"hidden":false,"merged":[]}
[]
[null,"№ п/п","Организация"]
[null,1,"М-Бетон"]
[null,{"$f":"IF(C4=\"\",\"\",B3+1)","v":""}]

{"sheet":"Подразделение","index":13,"n_rows":4,"n_cols":3,"rows_kept":4,"cut":false,"hidden":false,"merged":[]}
[]
[null,"№ п/п","Подразделение"]
[null,1,"Лаборатория"]
[null,{"$f":"IF(C4=\"\",\"\",B3+1)","v":""}]

{"sheet":"Завод","index":14,"n_rows":4,"n_cols":3,"rows_kept":4,"cut":false,"hidden":false,"merged":[]}
[]
[null,"№ п/п","Завод"]
[null,1,"РБУ-1 Дрожжино"]
[null,{"$f":"IF(C4=\"\",\"\",B3+1)","v":2},"РБУ-2 Люберецкий"]

{"sheet":"даты","index":15,"n_rows":9,"n_cols":3,"rows_kept":9,"cut":false,"hidden":false,"merged":[]}
[]
[null,"№ п/п","День недели"]
[null,1,"Воскресенье"]
[null,2,"Понедельник"]
[null,3,"Вторник"]
[null,4,"Среда"]
[null,5,"Четверг"]
[null,6,"Пятница"]
[null,7,"Суббота"]

{"sheet":"Лист1","index":16,"n_rows":0,"n_cols":0,"rows_kept":0,"cut":false,"hidden":false,"merged":[]}